[Event "Late-Titled-Tuesday-Blitz-March-19-2024"]
[Site "Chess.com"]
[Date "2024.03.19"]
[Round "4"]
[White "Sina_Movahed"]
[Black "FaustinoOro"]
[Result "0-1"]
[WhiteElo "3087"]
[BlackElo "2872"]
[TimeControl "180+1"]
[EndTime "14:40:24 PDT"]
[Termination "FaustinoOro won by resignation"]

1. e4 {[%clk 0:02:57.9]} 1... e5 {[%clk 0:02:59.7]} 2. Nf3 {[%clk 0:02:58.5]}
2... Nc6 {[%clk 0:03:00]} 3. d4 {[%clk 0:02:57.9]} 3... exd4 {[%clk 0:02:59.3]}
4. Nxd4 {[%clk 0:02:58.8]} 4... Qf6 {[%clk 0:02:59]} 5. Nf3 {[%clk 0:02:57.9]}
5... Bc5 {[%clk 0:02:56.4]} 6. c3 {[%clk 0:02:57.9]} 6... Nge7 {[%clk 0:02:54]}
7. Be2 {[%clk 0:02:57.4]} 7... d6 {[%clk 0:02:53.5]} 8. O-O {[%clk 0:02:57.7]}
8... O-O {[%clk 0:02:51.8]} 9. b4 {[%clk 0:02:56.6]} 9... Bb6 {[%clk 0:02:51.3]}
10. a4 {[%clk 0:02:51.3]} 10... a6 {[%clk 0:02:50]} 11. Nbd2 {[%clk 0:02:48.1]}
11... Ng6 {[%clk 0:02:40.1]} 12. Nc4 {[%clk 0:02:47.3]} 12... Ba7 {[%clk
0:02:36.8]} 13. Bg5 {[%clk 0:02:23.2]} 13... Qe6 {[%clk 0:02:36]} 14. Qc2 {[%clk
0:02:15.9]} 14... h6 {[%clk 0:02:30.8]} 15. Be3 {[%clk 0:02:16]} 15... Nce5
{[%clk 0:02:07.2]} 16. Ncxe5 {[%clk 0:01:48]} 16... dxe5 {[%clk 0:02:01]} 17.
Bxa7 {[%clk 0:01:46.4]} 17... Rxa7 {[%clk 0:02:01.1]} 18. g3 {[%clk 0:01:47]}
18... Ra8 {[%clk 0:01:55.1]} 19. Rfd1 {[%clk 0:01:42.9]} 19... Qf6 {[%clk
0:01:52.2]} 20. Nd2 {[%clk 0:01:35.3]} 20... Bh3 {[%clk 0:01:41.5]} 21. Nc4
{[%clk 0:01:32.3]} 21... Rad8 {[%clk 0:01:40.2]} 22. Rxd8 {[%clk 0:01:30.7]}
22... Rxd8 {[%clk 0:01:41.1]} 23. Rd1 {[%clk 0:01:31]} 23... Be6 {[%clk
0:01:31.2]} 24. Ne3 {[%clk 0:01:29.7]} 24... c6 {[%clk 0:01:22.6]} 25. a5 {[%clk
0:01:23.4]} 25... Nf8 {[%clk 0:01:15.6]} 26. Rd3 {[%clk 0:01:19.9]} 26... Rd7
{[%clk 0:01:04.3]} 27. Bg4 {[%clk 0:01:06.3]} 27... Qd8 {[%clk 0:00:45.3]} 28.
Rxd7 {[%clk 0:01:01.1]} 28... Qxd7 {[%clk 0:00:46.2]} 29. Be2 {[%clk 0:00:59.4]}
29... c5 {[%clk 0:00:32.3]} 30. Qd3 {[%clk 0:00:44.5]} 30... Qxd3 {[%clk
0:00:20.7]} 31. Bxd3 {[%clk 0:00:44.6]} 31... cxb4 {[%clk 0:00:18.4]} 32. cxb4
{[%clk 0:00:45.5]} 32... Nd7 {[%clk 0:00:18.9]} 33. f4 {[%clk 0:00:44.6]} 33...
f6 {[%clk 0:00:17.7]} 34. Kf2 {[%clk 0:00:40.5]} 34... Kf8 {[%clk 0:00:17.5]}
35. Ke1 {[%clk 0:00:38.8]} 35... Ke7 {[%clk 0:00:16.8]} 36. f5 {[%clk
0:00:31.9]} 36... Bf7 {[%clk 0:00:15.7]} 37. Kd2 {[%clk 0:00:32.4]} 37... Nb8
{[%clk 0:00:12.6]} 38. Kc3 {[%clk 0:00:27]} 38... Nc6 {[%clk 0:00:11]} 39. Nd1
{[%clk 0:00:20.5]} 39... Nd4 {[%clk 0:00:09.8]} 40. Nb2 {[%clk 0:00:20.9]} 40...
Kd6 {[%clk 0:00:06.8]} 41. Na4 {[%clk 0:00:16.9]} 41... Be8 {[%clk 0:00:07.2]}
42. Nc5 {[%clk 0:00:16.4]} 42... Bc6 {[%clk 0:00:07.9]} 43. Bc4 {[%clk
0:00:16.2]} 43... Nf3 {[%clk 0:00:04.1]} 44. h4 {[%clk 0:00:15.8]} 44... Nd4
{[%clk 0:00:03.9]} 45. Kd3 {[%clk 0:00:15.7]} 45... Ke7 {[%clk 0:00:03.2]} 46.
Be6 {[%clk 0:00:12.5]} 46... Kd6 {[%clk 0:00:01.9]} 47. Ba2 {[%clk 0:00:09.6]}
47... Bb5+ {[%clk 0:00:02.1]} 48. Kd2 {[%clk 0:00:09.6]} 48... Bc6 {[%clk
0:00:02.7]} 49. Bc4 {[%clk 0:00:07.6]} 49... Nf3+ {[%clk 0:00:02.6]} 50. Ke3
{[%clk 0:00:07.6]} 50... Nd4 {[%clk 0:00:03.5]} 51. Bd3 {[%clk 0:00:08.3]} 51...
Kc7 {[%clk 0:00:02.8]} 52. g4 {[%clk 0:00:08.9]} 52... Kd6 {[%clk 0:00:03.2]}
53. Bc4 {[%clk 0:00:03]} 53... Nc2+ {[%clk 0:00:02.5]} 54. Kd2 {[%clk
0:00:03.7]} 54... Nxb4 {[%clk 0:00:03.4]} 55. Ne6 {[%clk 0:00:04.3]} 55... Bxe4
{[%clk 0:00:03]} 56. Nxg7 {[%clk 0:00:05]} 56... Bf3 {[%clk 0:00:03]} 57. Nh5
{[%clk 0:00:04.9]} 57... Bxg4 {[%clk 0:00:02.6]} 58. Nxf6 {[%clk 0:00:04.8]}
58... Bxf5 {[%clk 0:00:03.3]} 59. Ng8 {[%clk 0:00:04.9]} 59... h5 {[%clk
0:00:03.6]} 60. Nf6 {[%clk 0:00:05.5]} 60... Bg6 {[%clk 0:00:04.1]} 61. Be2
{[%clk 0:00:06]} 61... Nc6 {[%clk 0:00:04.1]} 62. Bxh5 {[%clk 0:00:04.7]} 62...
Bxh5 {[%clk 0:00:03.8]} 63. Nxh5 {[%clk 0:00:05.6]} 63... Nxa5 {[%clk
0:00:04.3]} 64. Ke3 {[%clk 0:00:06.4]} 64... Ke6 {[%clk 0:00:03]} 65. Ke4 {[%clk
0:00:06.7]} 65... Nc4 {[%clk 0:00:03.7]} 66. Ng7+ {[%clk 0:00:07]} 66... Kf6
{[%clk 0:00:03.9]} 67. Nf5 {[%clk 0:00:07.5]} 67... Nd2+ {[%clk 0:00:03.7]} 68.
Kd3 {[%clk 0:00:06]} 68... Kxf5 {[%clk 0:00:04.6]} 69. Kxd2 {[%clk 0:00:06.6]}
69... Kg4 {[%clk 0:00:04.4]} 70. Ke3 {[%clk 0:00:06.6]} 70... Kxh4 {[%clk
0:00:04.9]} 71. Ke4 {[%clk 0:00:07.5]} 71... Kg3 {[%clk 0:00:05.2]} 72. Kxe5
{[%clk 0:00:08.4]} 72... Kf3 {[%clk 0:00:05.5]} 73. Kd4 {[%clk 0:00:09.3]} 73...
Kf4 {[%clk 0:00:05.8]} 74. Kc5 {[%clk 0:00:10.2]} 74... Ke5 {[%clk 0:00:05.6]}
75. Kb6 {[%clk 0:00:11.1]} 75... Kd6 {[%clk 0:00:06.1]} 76. Kxb7 {[%clk
0:00:11.7]} 76... a5 {[%clk 0:00:06.4]} 77. Ka6 {[%clk 0:00:12.6]} 77... a4
{[%clk 0:00:07]} 78. Ka5 {[%clk 0:00:13.5]} 78... a3 {[%clk 0:00:07.7]} 0-1

[Event "Late-Titled-Tuesday-Blitz-March-19-2024"]
[Site "Chess.com"]
[Date "2024.03.19"]
[Round "4"]
[White "dretch"]
[Black "Firouzja2003"]
[Result "1-0"]
[WhiteElo "2886"]
[BlackElo "3091"]
[TimeControl "180+1"]
[EndTime "14:40:28 PDT"]
[Termination "dretch won by resignation"]

1. d4 {[%clk 0:03:00.9]} 1... Nf6 {[%clk 0:02:59.6]} 2. c4 {[%clk 0:03:00.8]}
2... g6 {[%clk 0:03:00.3]} 3. Nc3 {[%clk 0:02:58.7]} 3... Bg7 {[%clk 0:03:00.9]}
4. e4 {[%clk 0:02:58.8]} 4... d6 {[%clk 0:03:01.6]} 5. Nf3 {[%clk 0:02:59.2]}
5... O-O {[%clk 0:03:01.9]} 6. h3 {[%clk 0:02:59.6]} 6... e5 {[%clk 0:03:02.2]}
7. dxe5 {[%clk 0:02:59.4]} 7... dxe5 {[%clk 0:03:02.1]} 8. Qxd8 {[%clk
0:02:59.7]} 8... Rxd8 {[%clk 0:03:03]} 9. Bg5 {[%clk 0:03:00]} 9... Na6 {[%clk
0:02:58.4]} 10. Nd5 {[%clk 0:02:59.4]} 10... Rd6 {[%clk 0:02:58.5]} 11. Bxf6
{[%clk 0:02:59.6]} 11... Bxf6 {[%clk 0:02:58.6]} 12. Rc1 {[%clk 0:03:00]} 12...
c5 {[%clk 0:02:50.9]} 13. Be2 {[%clk 0:02:56.6]} 13... Kg7 {[%clk 0:02:46.9]}
14. O-O {[%clk 0:02:52.9]} 14... Be6 {[%clk 0:02:46]} 15. a3 {[%clk 0:02:51.5]}
15... Rad8 {[%clk 0:02:35.8]} 16. Rb1 {[%clk 0:02:37.8]} 16... b6 {[%clk
0:02:31.3]} 17. b4 {[%clk 0:02:35.1]} 17... Rc8 {[%clk 0:02:26.9]} 18. Rfc1
{[%clk 0:02:33.3]} 18... Nb8 {[%clk 0:02:24.5]} 19. b5 {[%clk 0:02:24]} 19... h6
{[%clk 0:02:19.4]} 20. a4 {[%clk 0:02:23.9]} 20... Nd7 {[%clk 0:02:18]} 21. Ra1
{[%clk 0:02:22.5]} 21... Bg5 {[%clk 0:02:14.9]} 22. Rd1 {[%clk 0:02:17.6]} 22...
Bd8 {[%clk 0:02:04.6]} 23. Rd3 {[%clk 0:01:54.1]} 23... Nf6 {[%clk 0:01:21.4]}
24. Nxf6 {[%clk 0:01:52.9]} 24... Rxd3 {[%clk 0:01:21.1]} 25. Ne8+ {[%clk
0:01:46.8]} 25... Kf8 {[%clk 0:01:21]} 26. Bxd3 {[%clk 0:01:47]} 26... Kxe8
{[%clk 0:01:21.3]} 27. a5 {[%clk 0:01:39.4]} 27... bxa5 {[%clk 0:00:59.6]} 28.
Nxe5 {[%clk 0:01:38.6]} 28... Bf6 {[%clk 0:01:00.2]} 29. f4 {[%clk 0:01:38]}
29... Rd8 {[%clk 0:00:56.6]} 30. Bf1 {[%clk 0:01:29.5]} 30... g5 {[%clk
0:00:56.3]} 31. Rxa5 {[%clk 0:01:28.3]} 31... gxf4 {[%clk 0:00:55]} 32. Nc6
{[%clk 0:01:28.6]} 32... Rd1 {[%clk 0:00:54.9]} 33. e5 {[%clk 0:01:19.3]} 33...
Bh4 {[%clk 0:00:49.5]} 34. Ra4 {[%clk 0:01:07.6]} 34... f3 {[%clk 0:00:48.6]}
35. gxf3 {[%clk 0:00:50.5]} 35... Bxh3 {[%clk 0:00:49]} 36. Rxa7 {[%clk
0:00:50.5]} 36... Rxf1+ {[%clk 0:00:08.6]} 37. Kh2 {[%clk 0:00:50.3]} 37... Rxf3
{[%clk 0:00:08.5]} 38. b6 {[%clk 0:00:43.9]} 38... Rb3 {[%clk 0:00:08.5]} 39. b7
{[%clk 0:00:43]} 39... Be6 {[%clk 0:00:08.1]} 40. b8=Q+ {[%clk 0:00:32.1]} 40...
Rxb8 {[%clk 0:00:07.6]} 41. Nxb8 {[%clk 0:00:33]} 41... Bxc4 {[%clk 0:00:08.1]}
42. Nd7 {[%clk 0:00:27.2]} 42... Bg5 {[%clk 0:00:05.3]} 43. Kg3 {[%clk
0:00:25.6]} 43... Be3 {[%clk 0:00:04.1]} 44. Nf6+ {[%clk 0:00:24.4]} 44... Kd8
{[%clk 0:00:04.7]} 45. Kf3 {[%clk 0:00:21.7]} 45... Bd4 {[%clk 0:00:05.3]} 46.
Ke4 {[%clk 0:00:22.2]} 46... Be6 {[%clk 0:00:04.9]} 47. Nd5 {[%clk 0:00:17.3]}
47... h5 {[%clk 0:00:05.2]} 48. Nf4 {[%clk 0:00:17.2]} 48... Bb3 {[%clk
0:00:04.7]} 49. Nxh5 {[%clk 0:00:15.8]} 49... Kc8 {[%clk 0:00:04.9]} 50. Nf4
{[%clk 0:00:14.9]} 50... Kb8 {[%clk 0:00:05.3]} 51. Ra3 {[%clk 0:00:14.5]} 51...
Bc4 {[%clk 0:00:03.5]} 52. Ra4 {[%clk 0:00:13.7]} 52... Bb3 {[%clk 0:00:03.3]}
53. Ra3 {[%clk 0:00:14.1]} 53... Bc4 {[%clk 0:00:03.5]} 54. Rh3 {[%clk
0:00:14.4]} 54... Kc7 {[%clk 0:00:03.6]} 55. Rh7 {[%clk 0:00:14]} 55... Kc6
{[%clk 0:00:03.9]} 56. Rh6+ {[%clk 0:00:13.5]} 56... Kb5 {[%clk 0:00:04.1]} 57.
Nd5 {[%clk 0:00:13.2]} 57... Ba2 {[%clk 0:00:03.5]} 58. Rb6+ {[%clk 0:00:12.9]}
58... Kc4 {[%clk 0:00:04]} 59. Rb8 {[%clk 0:00:09.9]} 59... Bb3 {[%clk 0:00:04]}
60. Nb6+ {[%clk 0:00:09.1]} 60... Kc3 {[%clk 0:00:04.6]} 61. Nd5+ {[%clk
0:00:09.3]} 61... Kc4 {[%clk 0:00:05.1]} 62. Ne3+ {[%clk 0:00:09.5]} 62... Kc3
{[%clk 0:00:05.5]} 63. Rb7 {[%clk 0:00:09.7]} 63... Be6 {[%clk 0:00:04.6]} 64.
Nd5+ {[%clk 0:00:09.7]} 64... Kc4 {[%clk 0:00:04.8]} 65. Nf4 {[%clk 0:00:10.5]}
65... Bg4 {[%clk 0:00:02.3]} 66. Rxf7 {[%clk 0:00:10.1]} 66... Bd1 {[%clk
0:00:02.4]} 67. e6 {[%clk 0:00:09.1]} 67... Bc2+ {[%clk 0:00:03.3]} 68. Kf3
{[%clk 0:00:09.5]} 68... Bd1+ {[%clk 0:00:02.3]} 69. Kg3 {[%clk 0:00:08.6]}
69... Ba4 {[%clk 0:00:01.9]} 70. e7 {[%clk 0:00:08.1]} 70... Kb3 {[%clk
0:00:02.4]} 71. Rf8 {[%clk 0:00:08.2]} 71... c4 {[%clk 0:00:03.1]} 72. Rb8+
{[%clk 0:00:07.9]} 72... Kc2 {[%clk 0:00:02.3]} 73. e8=Q {[%clk 0:00:07.7]}
73... Bxe8 {[%clk 0:00:01.9]} 74. Rxe8 {[%clk 0:00:08.6]} 74... c3 {[%clk
0:00:02.7]} 75. Ne2 {[%clk 0:00:09.2]} 75... Kd3 {[%clk 0:00:01.9]} 76. Nxd4
{[%clk 0:00:04.8]} 76... Kxd4 {[%clk 0:00:02.8]} 77. Kf2 {[%clk 0:00:05.3]}
77... Kd3 {[%clk 0:00:01.8]} 78. Ke1 {[%clk 0:00:04.8]} 78... Kc2 {[%clk
0:00:02.7]} 79. Rc8 {[%clk 0:00:04.5]} 1-0

[Event "Late-Titled-Tuesday-Blitz-March-19-2024"]
[Site "Chess.com"]
[Date "2024.03.19"]
[Round "4"]
[White "Jospem"]
[Black "Kampkatten"]
[Result "1-0"]
[WhiteElo "3065"]
[BlackElo "2844"]
[TimeControl "180+1"]
[EndTime "14:40:59 PDT"]
[Termination "Jospem won on time"]

1. e4 {[%clk 0:03:00.9]} 1... e5 {[%clk 0:02:59]} 2. Nf3 {[%clk 0:02:59.9]} 2...
Nc6 {[%clk 0:02:59.5]} 3. Nc3 {[%clk 0:03:00.6]} 3... Nf6 {[%clk 0:02:59.6]} 4.
h3 {[%clk 0:03:01.4]} 4... d5 {[%clk 0:02:59.4]} 5. Bb5 {[%clk 0:03:01.6]} 5...
Nxe4 {[%clk 0:02:54.8]} 6. O-O {[%clk 0:03:01.9]} 6... Bd6 {[%clk 0:02:45.2]} 7.
Nxd5 {[%clk 0:03:01.4]} 7... Be6 {[%clk 0:02:44.2]} 8. Ne3 {[%clk 0:02:59.2]}
8... O-O {[%clk 0:02:38.3]} 9. d3 {[%clk 0:02:59.6]} 9... Nc5 {[%clk 0:02:35]}
10. Bc4 {[%clk 0:02:59.1]} 10... Re8 {[%clk 0:02:23]} 11. Bxe6 {[%clk 0:02:59]}
11... Nxe6 {[%clk 0:02:23.9]} 12. Nc4 {[%clk 0:02:58.7]} 12... Qf6 {[%clk
0:02:20]} 13. Re1 {[%clk 0:02:52]} 13... h6 {[%clk 0:02:18.3]} 14. Nfd2 {[%clk
0:02:50.3]} 14... Qg6 {[%clk 0:02:12.6]} 15. Qg4 {[%clk 0:02:47.1]} 15... Qxg4
{[%clk 0:02:11.2]} 16. hxg4 {[%clk 0:02:48]} 16... Ned4 {[%clk 0:01:56.4]} 17.
Ne3 {[%clk 0:02:48]} 17... Nb4 {[%clk 0:01:56.3]} 18. Rd1 {[%clk 0:02:27.5]}
18... Nbxc2 {[%clk 0:01:53.4]} 19. Nxc2 {[%clk 0:02:28.4]} 19... Nxc2 {[%clk
0:01:53.5]} 20. Rb1 {[%clk 0:02:29.3]} 20... Nb4 {[%clk 0:01:44.9]} 21. Nc4
{[%clk 0:02:29.9]} 21... a5 {[%clk 0:01:23.9]} 22. a3 {[%clk 0:02:28.5]} 22...
Nd5 {[%clk 0:01:22.5]} 23. Kf1 {[%clk 0:02:08.9]} 23... Bc5 {[%clk 0:01:19.5]}
24. Nd2 {[%clk 0:02:02.9]} 24... a4 {[%clk 0:01:16.8]} 25. Ne4 {[%clk
0:02:02.3]} 25... Bd4 {[%clk 0:01:14.2]} 26. Bd2 {[%clk 0:02:00.6]} 26... b6
{[%clk 0:01:09.3]} 27. Rdc1 {[%clk 0:01:55.4]} 27... Red8 {[%clk 0:01:08]} 28.
Ke2 {[%clk 0:01:50.8]} 28... c5 {[%clk 0:01:07.3]} 29. b4 {[%clk 0:01:47.7]}
29... axb3 {[%clk 0:01:06.5]} 30. Rxb3 {[%clk 0:01:48]} 30... Ra6 {[%clk
0:01:04.8]} 31. Rcb1 {[%clk 0:01:44.2]} 31... Rda8 {[%clk 0:01:02.2]} 32. Bc1
{[%clk 0:01:44.7]} 32... g6 {[%clk 0:01:01.3]} 33. Kf1 {[%clk 0:01:27]} 33...
Kg7 {[%clk 0:01:00]} 34. g3 {[%clk 0:01:27.3]} 34... Rd8 {[%clk 0:00:49.4]} 35.
Kg2 {[%clk 0:01:20.7]} 35... f5 {[%clk 0:00:49.5]} 36. gxf5 {[%clk 0:01:19.1]}
36... gxf5 {[%clk 0:00:50.4]} 37. Nd2 {[%clk 0:01:19.6]} 37... Kg6 {[%clk
0:00:34.6]} 38. Nc4 {[%clk 0:01:18.6]} 38... Rb8 {[%clk 0:00:29.5]} 39. Bd2
{[%clk 0:01:14.1]} 39... h5 {[%clk 0:00:28.7]} 40. Re1 {[%clk 0:01:12.9]} 40...
Kf6 {[%clk 0:00:28.1]} 41. Rh1 {[%clk 0:01:12.1]} 41... Rh8 {[%clk 0:00:27.3]}
42. a4 {[%clk 0:01:05.5]} 42... h4 {[%clk 0:00:24.8]} 43. Rxh4 {[%clk
0:00:59.7]} 43... Rxh4 {[%clk 0:00:23.9]} 44. gxh4 {[%clk 0:01:00.6]} 44... f4
{[%clk 0:00:24.2]} 45. a5 {[%clk 0:00:42.4]} 45... bxa5 {[%clk 0:00:21.6]} 46.
Bxa5 {[%clk 0:00:43.3]} 46... Kf5 {[%clk 0:00:20.5]} 47. Rb8 {[%clk 0:00:40.2]}
47... Kg4 {[%clk 0:00:19.6]} 48. Rg8+ {[%clk 0:00:35.1]} 48... Kxh4 {[%clk
0:00:19.4]} 49. Bd8+ {[%clk 0:00:35.5]} 49... Kh5 {[%clk 0:00:19.6]} 50. Nxe5
{[%clk 0:00:33.3]} 50... Bxe5 {[%clk 0:00:18]} 51. Rg5+ {[%clk 0:00:33.5]} 51...
Kh6 {[%clk 0:00:18.6]} 52. Rxe5 {[%clk 0:00:34.4]} 52... Rd6 {[%clk 0:00:18.3]}
53. Bh4 {[%clk 0:00:29]} 53... Nb4 {[%clk 0:00:17.6]} 54. Be7 {[%clk 0:00:21.9]}
54... Rd7 {[%clk 0:00:13.5]} 55. Re6+ {[%clk 0:00:13.8]} 55... Kg7 {[%clk
0:00:13.7]} 56. Bxc5 {[%clk 0:00:13.7]} 56... Nxd3 {[%clk 0:00:14]} 57. Bb6
{[%clk 0:00:12.2]} 57... Kf7 {[%clk 0:00:13.3]} 58. Rh6 {[%clk 0:00:12.1]} 58...
Kg7 {[%clk 0:00:13.6]} 59. Rc6 {[%clk 0:00:12.2]} 59... Ne5 {[%clk 0:00:12.4]}
60. Re6 {[%clk 0:00:12]} 60... Nc4 {[%clk 0:00:11.6]} 61. Bc5 {[%clk 0:00:11.3]}
61... Nd2 {[%clk 0:00:10.9]} 62. Bb4 {[%clk 0:00:09.8]} 62... Nc4 {[%clk
0:00:10.2]} 63. Bc3+ {[%clk 0:00:10.2]} 63... Kf7 {[%clk 0:00:09.8]} 64. Rf6+
{[%clk 0:00:10.6]} 64... Ke7 {[%clk 0:00:10.4]} 65. Rxf4 {[%clk 0:00:11.5]}
65... Nb6 {[%clk 0:00:10]} 66. Bb4+ {[%clk 0:00:11.2]} 66... Ke6 {[%clk
0:00:09.7]} 67. Re4+ {[%clk 0:00:11.9]} 67... Kf5 {[%clk 0:00:09.6]} 68. Rh4
{[%clk 0:00:12.6]} 68... Nd5 {[%clk 0:00:09.9]} 69. Bd2 {[%clk 0:00:13.3]} 69...
Rg7+ {[%clk 0:00:09.6]} 70. Kf3 {[%clk 0:00:13.5]} 70... Rb7 {[%clk 0:00:10.2]}
71. Rh5+ {[%clk 0:00:13.8]} 71... Ke6 {[%clk 0:00:10.8]} 72. Rh6+ {[%clk
0:00:12.9]} 72... Kf5 {[%clk 0:00:10.5]} 73. Rh5+ {[%clk 0:00:12.7]} 73... Ke6
{[%clk 0:00:11]} 74. Rg5 {[%clk 0:00:12.3]} 74... Rb3+ {[%clk 0:00:09.8]} 75.
Ke4 {[%clk 0:00:09]} 75... Nf6+ {[%clk 0:00:10.2]} 76. Kd4 {[%clk 0:00:09.1]}
76... Rf3 {[%clk 0:00:07.8]} 77. Be3 {[%clk 0:00:08.6]} 77... Rf5 {[%clk
0:00:08.4]} 78. Rg6 {[%clk 0:00:07.1]} 78... Rd5+ {[%clk 0:00:08.6]} 79. Kc4
{[%clk 0:00:07.3]} 79... Rd6 {[%clk 0:00:06.6]} 80. Bc5 {[%clk 0:00:06]} 80...
Kf5 {[%clk 0:00:06.1]} 81. Rg3 {[%clk 0:00:04]} 81... Rd1 {[%clk 0:00:06.2]} 82.
Rf3+ {[%clk 0:00:04.2]} 82... Ke5 {[%clk 0:00:05]} 83. Be3 {[%clk 0:00:04.5]}
83... Ne4 {[%clk 0:00:04.5]} 84. Rf8 {[%clk 0:00:05]} 84... Rd7 {[%clk
0:00:03.3]} 85. Re8+ {[%clk 0:00:05]} 85... Kf5 {[%clk 0:00:03.2]} 86. Rf8+
{[%clk 0:00:05.7]} 86... Ke5 {[%clk 0:00:03.6]} 87. Kb5 {[%clk 0:00:05.9]} 87...
Rd5+ {[%clk 0:00:02.8]} 88. Kc6 {[%clk 0:00:06.3]} 88... Rd6+ {[%clk 0:00:03.3]}
89. Kc7 {[%clk 0:00:06.7]} 89... Rd1 {[%clk 0:00:03.9]} 90. f4+ {[%clk
0:00:06.6]} 90... Ke6 {[%clk 0:00:04.4]} 91. Re8+ {[%clk 0:00:06.6]} 91... Kf5
{[%clk 0:00:02.4]} 92. Re5+ {[%clk 0:00:06.9]} 92... Kg4 {[%clk 0:00:02.7]} 93.
Rxe4 {[%clk 0:00:07.8]} 1-0